fUST/lending_fUST_20260509
["ID","MTS","AMOUNT","RATE_DAILY","PERIOD"]
[421923023,1778333446000,-300.0,8.734e-05,2]
[421923035,1778333469000,500.0,0.00010959,30]
[421923036,1778333469000,500.0,0.00010959,30]
[421923039,1778333470000,500.0,0.00010959,30]
[421923038,1778333470000,500.0,0.00010959,30]
[421923037,1778333470000,500.0,0.00010959,30]
[421923041,1778333471000,543.68606101,0.00010959,30]
[421923040,1778333471000,500.0,0.00010959,30]
[421923046,1778334012000,1087732.89177422,0.00019178,120]
[421923095,1778334631000,-300.0,8.512e-05,2]
[421923104,1778334632000,-300.0,8.512e-05,2]
[421923102,1778334632000,-300.0,8.512e-05,2]
[421923100,1778334632000,-300.0,8.512e-05,2]
[421923098,1778334632000,-300.0,8.512e-05,2]
[421923106,1778334632000,-339.5281632,8.513e-05,2]
[421923122,1778334632000,-135.53493778,8.514e-05,2]
[421923110,1778334632000,-213.30546291,8.514e-05,2]
[421923114,1778334632000,-710.7371903,8.514e-05,2]
[421923120,1778334632000,-385.04519701,8.514e-05,2]
[421923117,1778334632000,-325.69199329,8.514e-05,2]
[421923111,1778334632000,-710.7371903,8.514e-05,2]
[421923108,1778334632000,-1200.0,8.513e-05,2]
[421923186,1778334638000,-183.93236595,8.514e-05,2]
[421923187,1778334638000,-500.0,8.514e-05,2]
[421923184,1778334638000,-500.0,8.514e-05,2]
[421923185,1778334638000,-500.0,8.514e-05,2]
[421923183,1778334638000,-351.96147549,8.514e-05,2]
[421923182,1778334638000,-500.0,8.514e-05,2]
[421923180,1778334638000,-710.7371903,8.514e-05,2]
[421923181,1778334638000,-710.7371903,8.514e-05,2]
[421923178,1778334638000,-710.7371903,8.514e-05,2]
[421923177,1778334638000,-710.7371903,8.514e-05,2]
[421923176,1778334638000,-288.81236861,8.514e-05,2]
[421923188,1778334638000,-500.0,8.514e-05,2]
[421923175,1778334638000,-421.92482169,8.514e-05,2]
[421923173,1778334638000,-145.03371798,8.514e-05,2]
[421923174,1778334638000,-565.70347232,8.514e-05,2]
[421923171,1778334638000,-710.7371903,8.514e-05,2]
[421923172,1778334638000,-710.7371903,8.514e-05,2]
[421923170,1778334638000,-710.7371903,8.514e-05,2]
[421923168,1778334638000,-575.20225252,8.514e-05,2]
[421923179,1778334638000,-710.7371903,8.514e-05,2]
[421923189,1778334638000,-267.47450937,8.514e-05,2]
[421923169,1778334638000,-500.0,8.514e-05,2]
[421923190,1778334638000,-500.0,8.514e-05,2]
[421923191,1778334638000,-500.0,8.514e-05,2]
[421923210,1778334638000,-500.0,8.514e-05,2]
[421923211,1778334638000,-500.0,8.514e-05,2]
[421923208,1778334638000,-500.0,8.514e-05,2]
[421923209,1778334638000,-500.0,8.514e-05,2]
[421923204,1778334638000,-500.0,8.514e-05,2]
[421923206,1778334638000,-500.0,8.514e-05,2]
[421923203,1778334638000,-500.0,8.514e-05,2]
[421923205,1778334638000,-710.7371903,8.514e-05,2]
[421923207,1778334638000,-500.0,8.514e-05,2]
[421923202,1778334638000,-500.0,8.514e-05,2]
[421923200,1778334638000,-500.0,8.514e-05,2]
[421923201,1778334638000,-500.0,8.514e-05,2]
[421923199,1778334638000,-500.0,8.514e-05,2]
[421923192,1778334638000,-490.78624567,8.514e-05,2]
[421923196,1778334638000,-500.0,8.514e-05,2]
[421923197,1778334638000,-500.0,8.514e-05,2]
[421923194,1778334638000,-710.7371903,8.514e-05,2]
[421923195,1778334638000,-500.0,8.514e-05,2]
[421923198,1778334638000,-500.0,8.514e-05,2]
[421923193,1778334638000,-500.0,8.514e-05,2]
[421923240,1778334639000,-710.73719029,8.514e-05,2]
[421923244,1778334639000,-500.0,8.514e-05,2]
[421923239,1778334639000,-710.73719029,8.514e-05,2]
[421923241,1778334639000,-710.73719029,8.514e-05,2]
[421923238,1778334639000,-710.73719029,8.514e-05,2]
[421923235,1778334639000,-710.73719029,8.514e-05,2]
[421923245,1778334639000,-500.0,8.514e-05,2]
[421923243,1778334639000,-710.73719029,8.514e-05,2]
[421923242,1778334639000,-710.73719029,8.514e-05,2]
[421923249,1778334639000,-500.0,8.514e-05,2]
[421923247,1778334639000,-500.0,8.514e-05,2]
[421923248,1778334639000,-500.0,8.514e-05,2]
[421923253,1778334639000,-500.0,8.514e-05,2]
[421923250,1778334639000,-500.0,8.514e-05,2]
[421923256,1778334639000,-500.0,8.514e-05,2]
[421923254,1778334639000,-500.0,8.514e-05,2]
[421923251,1778334639000,-500.0,8.514e-05,2]
[421923252,1778334639000,-500.0,8.514e-05,2]
[421923236,1778334639000,-710.73719029,8.514e-05,2]
[421923255,1778334639000,-500.0,8.514e-05,2]
[421923246,1778334639000,-500.0,8.514e-05,2]
[421923237,1778334639000,-710.73719029,8.514e-05,2]
[421923224,1778334639000,-500.0,8.514e-05,2]
[421923233,1778334639000,-500.0,8.514e-05,2]
[421923257,1778334639000,-500.0,8.514e-05,2]
[421923213,1778334639000,-500.0,8.514e-05,2]
[421923212,1778334639000,-500.0,8.514e-05,2]
[421923214,1778334639000,-500.0,8.514e-05,2]
[421923219,1778334639000,-500.0,8.514e-05,2]
[421923220,1778334639000,-500.0,8.514e-05,2]
[421923217,1778334639000,-500.0,8.514e-05,2]
[421923215,1778334639000,-500.0,8.514e-05,2]
[421923216,1778334639000,-500.0,8.514e-05,2]
[421923218,1778334639000,-500.0,8.514e-05,2]
[421923221,1778334639000,-500.0,8.514e-05,2]
[421923223,1778334639000,-500.0,8.514e-05,2]
[421923222,1778334639000,-500.0,8.514e-05,2]
[421923225,1778334639000,-500.0,8.514e-05,2]
[421923229,1778334639000,-500.0,8.514e-05,2]
[421923232,1778334639000,-500.0,8.514e-05,2]
[421923228,1778334639000,-500.0,8.514e-05,2]
[421923231,1778334639000,-171.96141228,8.514e-05,2]
[421923227,1778334639000,-500.0,8.514e-05,2]
[421923226,1778334639000,-500.0,8.514e-05,2]
[421923230,1778334639000,-500.0,8.514e-05,2]
[421923234,1778334639000,-500.0,8.514e-05,2]
[421923258,1778334639000,-600.0,8.514e-05,2]
[421923269,1778334639000,-300.0,8.683e-05,2]
[421923260,1778334639000,-1279.32694251,8.514e-05,2]
[421923287,1778334639000,-420.0,9.363e-05,2]
[421923289,1778334639000,-420.0,9.363e-05,2]
[421923293,1778334639000,-293.16027882,9.651e-05,2]
[421923292,1778334639000,-652.19350791,9.58e-05,2]
[421923291,1778334639000,-720.0,9.552e-05,2]
[421923296,1778334639000,-500.0,9.653e-05,2]
[421923295,1778334639000,-500.0,9.653e-05,2]
[421923294,1778334639000,-500.0,9.653e-05,2]
[421923297,1778334639000,-500.0,9.653e-05,2]
[421923290,1778334639000,-1680.0,9.364e-05,2]
[421923299,1778334639000,-500.0,9.653e-05,2]
[421923303,1778334639000,-43077.52216485,9.698e-05,2]
[421923301,1778334639000,-159.98203608,9.692e-05,2]
[421923302,1778334639000,-537.6845,9.692e-05,2]
[421923259,1778334639000,-500.0,8.514e-05,2]
[421923305,1778334639000,-21094.7471359,9.698e-05,2]
[421923306,1778334639000,-61525.66649851,9.698e-05,2]
[421923307,1778334639000,-1444.2492877,9.698e-05,2]
[421923308,1778334639000,-1480.69323318,9.698e-05,2]
[421923309,1778334639000,-1748.45620761,9.698e-05,2]
[421923300,1778334639000,-485.41396517,9.653e-05,2]
[421923298,1778334639000,-500.0,9.653e-05,2]
[421923304,1778334639000,-117901.97466698,9.698e-05,2]
[421923286,1778334639000,-2615.5016242,9.287e-05,2]
[421923261,1778334639000,-300.0,8.515e-05,2]
[421923262,1778334639000,-17127.79517871,8.515e-05,2]
[421923266,1778334639000,-300.0,8.683e-05,2]
[421923263,1778334639000,-3693626.30482129,8.515e-05,2]
[421923267,1778334639000,-300.0,8.683e-05,2]
[421923268,1778334639000,-300.0,8.683e-05,2]
[421923265,1778334639000,-300.0,8.683e-05,2]
[421923270,1778334639000,-300.0,8.683e-05,2]
[421923272,1778334639000,-300.0,8.683e-05,2]
[421923282,1778334639000,-300.0,8.683e-05,2]
[421923264,1778334639000,-217.6744285,8.618e-05,2]
[421923285,1778334639000,-19189.8094951,9.287e-05,2]
[421923280,1778334639000,-300.0,8.683e-05,2]
[421923284,1778334639000,-152.0,8.963e-05,7]
[421923278,1778334639000,-300.0,8.683e-05,2]
[421923274,1778334639000,-300.0,8.683e-05,2]
[421923281,1778334639000,-300.0,8.683e-05,2]
[421923273,1778334639000,-300.0,8.683e-05,2]
[421923271,1778334639000,-300.0,8.683e-05,2]
[421923283,1778334639000,-600.0,8.683e-05,2]
[421923276,1778334639000,-300.0,8.683e-05,2]
[421923288,1778334639000,-420.0,9.363e-05,2]
[421923320,1778334640000,-2333.18114726,9.698e-05,2]
[421923333,1778334645000,-2119.25919702,9.698e-05,2]
[421923330,1778334645000,-3166.47645286,9.698e-05,2]
[421923331,1778334645000,-1275.38190145,9.698e-05,2]
[421923344,1778334646000,-14914.02128927,9.698e-05,2]
[421923345,1778334646000,-37355.04956312,9.698e-05,2]
[421923348,1778335179000,94595.80721531,0.0001917,120]
[421923349,1778335235000,-3383.54002383,8.373e-05,2]
[421923350,1778335252000,-500.61714521,8.458e-05,2]
[421923351,1778335269000,-300.0,8.543e-05,2]
[421923352,1778335286000,-351.35214041,8.771e-05,2]
[421923353,1778335303000,-152.0,8.963e-05,7]
[421923354,1778335319000,-1754.0341415,9.369e-05,2]
[421923355,1778335336000,-1200.0,9.503e-05,2]
[421923356,1778335353000,-790.078,9.504e-05,2]
[421923357,1778335508000,5392.66483497,7.6e-05,2]
[421924081,1778335838000,-500.0,9.222e-05,2]
[421924080,1778335838000,-500.0,9.222e-05,2]
[421924070,1778335838000,-278.76660099,9.222e-05,2]
[421924072,1778335838000,-500.0,9.222e-05,2]
[421924071,1778335838000,-221.23339901,9.222e-05,2]
[421924069,1778335838000,-500.0,9.222e-05,2]
[421924075,1778335838000,-500.0,9.222e-05,2]
[421924078,1778335838000,-500.0,9.222e-05,2]
[421924065,1778335838000,-500.0,9.222e-05,2]
[421924067,1778335838000,-500.0,9.222e-05,2]
[421924066,1778335838000,-500.0,9.222e-05,2]
[421924064,1778335838000,-394.0,9.221e-05,2]
[421924068,1778335838000,-500.0,9.222e-05,2]
[421924063,1778335838000,-361.0,9.221e-05,2]
[421924074,1778335838000,-500.0,9.222e-05,2]
[421924061,1778335838000,-225.0,9.221e-05,2]
[421924079,1778335838000,-500.0,9.222e-05,2]
[421924073,1778335838000,-500.0,9.222e-05,2]
[421924062,1778335838000,-300.0,9.221e-05,2]
[421924077,1778335838000,-500.0,9.222e-05,2]
[421924095,1778335838000,-24095.97311576,9.343e-05,2]
[421924097,1778335838000,-573.16753603,9.496e-05,2]
[421924096,1778335838000,-573.16753603,9.496e-05,2]
[421924098,1778335838000,-649.79785777,9.496e-05,2]
[421924091,1778335838000,-344.32509761,9.343e-05,2]
[421924083,1778335838000,-500.0,9.222e-05,2]
[421924092,1778335838000,-170.4443247,9.343e-05,2]
[421924084,1778335838000,-218.32226395,9.222e-05,2]
[421924082,1778335838000,-500.0,9.222e-05,2]
[421924090,1778335838000,-288.0,9.342e-05,2]
[421924087,1778335838000,-500.0,9.222e-05,2]
[421924085,1778335838000,-500.0,9.222e-05,2]
[421924094,1778335838000,-5009.74580559,9.343e-05,2]
[421924093,1778335838000,-185.0,9.343e-05,2]
[421924086,1778335838000,-500.0,9.222e-05,2]
[421924089,1778335838000,-325.5877437,9.268e-05,2]
[421924076,1778335838000,-500.0,9.222e-05,2]
[421924088,1778335838000,-403.07737979,9.222e-05,2]
[421924116,1778335839000,-573.16753603,9.496e-05,2]
[421924117,1778335839000,-573.16753603,9.496e-05,2]
[421924118,1778335839000,-500.0,9.496e-05,2]
[421924121,1778335839000,-500.0,9.496e-05,2]
[421924113,1778335839000,-500.0,9.496e-05,2]
[421924125,1778335839000,-573.16753603,9.496e-05,2]
[421924124,1778335839000,-500.0,9.496e-05,2]
[421924123,1778335839000,-500.0,9.496e-05,2]
[421924114,1778335839000,-573.16753603,9.496e-05,2]
[421924119,1778335839000,-264.00107312,9.496e-05,2]
[421924111,1778335839000,-266.72090187,9.496e-05,2]
[421924108,1778335839000,-573.16753603,9.496e-05,2]
[421924109,1778335839000,-573.16753603,9.496e-05,2]
[421924112,1778335839000,-500.0,9.496e-05,2]
[421924110,1778335839000,-500.0,9.496e-05,2]
[421924115,1778335839000,-500.0,9.496e-05,2]
[421924103,1778335839000,-573.16753603,9.496e-05,2]
[421924104,1778335839000,-573.16753603,9.496e-05,2]
[421924102,1778335839000,-573.16753603,9.496e-05,2]
[421924105,1778335839000,-573.16753603,9.496e-05,2]
[421924101,1778335839000,-573.16753603,9.496e-05,2]
[421924100,1778335839000,-573.16753603,9.496e-05,2]
[421924099,1778335839000,-573.16753603,9.496e-05,2]
[421924107,1778335839000,-573.16753603,9.496e-05,2]
[421924122,1778335839000,-500.0,9.496e-05,2]
[421924106,1778335839000,-573.16753603,9.496e-05,2]
[421924127,1778335839000,-500.0,9.496e-05,2]
[421924148,1778335839000,-1611583.84183235,9.497e-05,2]
[421924146,1778335839000,-630.48428964,9.496e-05,2]
[421924141,1778335839000,-630.48428964,9.496e-05,2]
[421924149,1778335839000,-278021.43016876,9.497e-05,2]
[421924143,1778335839000,-630.48428964,9.496e-05,2]
[421924147,1778335839000,-55151.46649503,9.497e-05,2]
[421924144,1778335839000,-630.48428964,9.496e-05,2]
[421924140,1778335839000,-630.48428964,9.496e-05,2]
[421924139,1778335839000,-630.48428964,9.496e-05,2]
[421924142,1778335839000,-630.48428964,9.496e-05,2]
[421924145,1778335839000,-630.48428964,9.496e-05,2]
[421924150,1778335839000,-435.0,9.497e-05,2]
[421924134,1778335839000,-500.0,9.496e-05,2]
[421924138,1778335839000,-630.48428964,9.496e-05,2]
[421924126,1778335839000,-500.0,9.496e-05,2]
[421924130,1778335839000,-500.0,9.496e-05,2]
[421924129,1778335839000,-500.0,9.496e-05,2]
[421924128,1778335839000,-500.0,9.496e-05,2]
[421924137,1778335839000,-500.0,9.496e-05,2]
[421924131,1778335839000,-500.0,9.496e-05,2]
[421924132,1778335839000,-573.16753603,9.496e-05,2]
[421924135,1778335839000,-500.0,9.496e-05,2]
[421924136,1778335839000,-500.0,9.496e-05,2]
[421924133,1778335839000,-500.0,9.496e-05,2]
[421924120,1778335839000,-500.0,9.496e-05,2]
[421924168,1778335840000,-380.36253887,9.497e-05,2]
[421924169,1778335840000,-5276.11361017,9.497e-05,2]
[421924167,1778335840000,-1719.26634701,9.497e-05,2]
[421924185,1778335844000,-9308.68351841,9.497e-05,2]
[421924188,1778335845000,-57750.0,9.497e-05,2]
[421924186,1778335845000,-259.14535789,9.497e-05,2]
[421924197,1778335847000,-27499.30216846,9.497e-05,2]
[421924199,1778335867000,151.44,8.16e-05,2]
[421924200,1778336054000,829.24346789,8.16e-05,2]
[421924202,1778336255000,5000.0,8.16e-05,2]
[421924203,1778336270000,4418.67882041,8.16e-05,2]
[421924324,1778337035000,-154.55979225,9.069e-05,2]
[421924325,1778337035000,-500.0,9.069e-05,2]
[421924311,1778337035000,-366.46284776,8.205e-05,2]
[421924310,1778337035000,-151.0,8.2e-05,2]
[421924312,1778337035000,-300.0,8.22e-05,2]
[421924313,1778337035000,-303.31732707,8.235e-05,2]
[421924314,1778337035000,-1696.68267293,8.235e-05,2]
[421924315,1778337035000,-456.3497628,8.341e-05,2]
[421924317,1778337035000,-152.725356,8.342e-05,2]
[421924309,1778337035000,-151.0,8.2e-05,2]
[421924316,1778337035000,-456.3760811,8.341e-05,2]
[421924321,1778337035000,-151.5,9.069e-05,2]
[421924320,1778337035000,-205.12964111,9.069e-05,2]
[421924319,1778337035000,-456.3497628,8.446e-05,2]
[421924322,1778337035000,-151.5,9.069e-05,2]
[421924326,1778337035000,-500.0,9.069e-05,2]
[421924323,1778337035000,-191.5874813,9.069e-05,2]
[421924318,1778337035000,-456.3497628,8.342e-05,2]
[421924341,1778337036000,-456.3760811,9.164e-05,2]
[421924335,1778337036000,-300.0,9.162e-05,2]
[421924339,1778337036000,-325.7108613,9.163e-05,2]
[421924338,1778337036000,-300.0,9.162e-05,2]
[421924337,1778337036000,-300.0,9.162e-05,2]
[421924336,1778337036000,-300.0,9.162e-05,2]
[421924334,1778337036000,-1200.0,9.161e-05,2]
[421924329,1778337036000,-647.89399347,9.069e-05,2]
[421924331,1778337036000,-590.31882123,9.069e-05,2]
[421924340,1778337036000,-456.3760811,9.163e-05,2]
[421924332,1778337036000,-151.5,9.069e-05,2]
[421924330,1778337036000,-500.0,9.069e-05,2]
[421924328,1778337036000,-500.0,9.069e-05,2]
[421924327,1778337036000,-500.0,9.069e-05,2]
[421924333,1778337036000,-5657.16420682,9.069e-05,2]
[421924342,1778337036000,-456.3760811,9.164e-05,2]
[421924354,1778337036000,-500.0,9.178e-05,2]
[421924345,1778337036000,-523.2738141,9.164e-05,2]
[421924346,1778337036000,-459.3302033,9.164e-05,2]
[421924358,1778337036000,-9900.51720233,9.196e-05,2]
[421924355,1778337036000,-500.0,9.178e-05,2]
[421924359,1778337036000,-3614.14654064,9.196e-05,2]
[421924356,1778337036000,-600.68132839,9.178e-05,2]
[421924352,1778337036000,-500.0,9.178e-05,2]
[421924353,1778337036000,-500.0,9.178e-05,2]
[421924357,1778337036000,-4616.35944754,9.196e-05,2]
[421924348,1778337036000,-500.0,9.178e-05,2]
[421924344,1778337036000,-151.0,9.164e-05,2]
[421924343,1778337036000,-325.7699083,9.164e-05,2]
[421924349,1778337036000,-500.0,9.178e-05,2]
[421924351,1778337036000,-500.0,9.178e-05,2]
[421924350,1778337036000,-500.0,9.178e-05,2]
[421924347,1778337036000,-500.0,9.178e-05,2]
[421924380,1778337038000,-43043.27847055,9.196e-05,2]
[421924376,1778337038000,-1607.0,9.196e-05,2]
[421924377,1778337038000,-20166.95299429,9.196e-05,2]
[421924375,1778337038000,-3273.73303254,9.196e-05,2]
[421924378,1778337038000,-1604396.60159337,9.196e-05,2]
[421924416,1778337046000,-1316.81261667,9.196e-05,2]
[421924434,1778337245000,979.71275531,8.16e-05,2]
[421924435,1778337261000,5000.0,8.16e-05,2]
[421924436,1778337270000,153.6808759,0.00015126,120]
[421924437,1778337283000,5000.0,8.16e-05,2]
[421924439,1778337305000,1796.21673382,8.16e-05,2]
[421924443,1778337507000,5000.0,8.16e-05,2]
[421924445,1778337599000,173.394795,8.038e-05,2]
[421924451,1778337968000,165.963188,3.86e-05,2]
[421924452,1778338026000,1953.6695952,8.16e-05,2]
[421924454,1778338063000,3356.86876676,8.16e-05,2]
[421924455,1778338065000,151.0,7.624e-05,2]
[421924457,1778338083000,325.7699083,7.624e-05,2]
[421924458,1778338098000,456.3497628,7.624e-05,2]
[421924534,1778338233000,-151.0,8.2e-05,2]
[421924535,1778338233000,-384.01521255,8.21e-05,2]
[421924537,1778338233000,-200.0,8.427e-05,2]
[421924539,1778338233000,-456.3497628,8.446e-05,2]
[421924547,1778338233000,-300.0,8.893e-05,2]
[421924541,1778338233000,-325.7824685,8.476e-05,2]
[421924536,1778338233000,-1052.0918107,8.219e-05,2]
[421924546,1778338233000,-300.0,8.892e-05,2]
[421924548,1778338233000,-5193.10525463,8.893e-05,2]
[421924544,1778338233000,-300.0,8.892e-05,2]
[421924542,1778338233000,-1200.0,8.891e-05,2]
[421924551,1778338233000,-1818.77708116,8.893e-05,2]
[421924550,1778338233000,-5000.0,8.893e-05,2]
[421924538,1778338233000,-247.52,8.427e-05,7]
[421924545,1778338233000,-214.0,8.892e-05,2]
[421924543,1778338233000,-300.0,8.892e-05,2]
[421924549,1778338233000,-469.74779629,8.893e-05,2]
[421924540,1778338233000,-325.7824685,8.476e-05,2]
[421924563,1778338238000,-56296.73565357,8.895e-05,2]
[421924562,1778338238000,-23730.31897028,8.893e-05,2]
[421924561,1778338238000,-384.01521255,8.205e-05,2]
[421924568,1778338239000,-8321.52845438,8.896e-05,2]
[421924567,1778338239000,-1628651.78815387,8.895e-05,2]
[421924566,1778338239000,-943.065,8.895e-05,2]
[421924564,1778338239000,-12033.40121222,8.895e-05,2]
[421924565,1778338239000,-2075.00998034,8.895e-05,2]
[421924575,1778338241000,-1806.30804927,8.896e-05,2]
[421924574,1778338241000,-533.21178026,8.896e-05,2]
[421924642,1778338245000,-585.75366434,8.896e-05,2]
[421924635,1778338245000,-52247.4196524,8.896e-05,2]
[421924674,1778338247000,-38043.87127873,8.896e-05,2]
[421924673,1778338247000,-204.3,8.896e-05,2]
[421924672,1778338247000,-151.0,8.2e-05,2]
[421924676,1778338322000,5000.0,8.16e-05,2]
[421924681,1778338835000,-151.0,8.2e-05,2]
[421924683,1778338851000,-151.0,8.2e-05,2]
[421924685,1778338868000,-151.0,8.2e-05,2]
[421924686,1778338885000,-151.0,8.2e-05,2]
[421924687,1778338902000,-151.0,8.2e-05,2]
[421924688,1778338918000,-394.50817818,8.348e-05,2]
[421924689,1778338936000,-200.74842933,8.496e-05,2]
[421924690,1778338952000,-464.25157067,8.438e-05,7]
[421924800,1778339431000,-587.0,8.519e-05,2]
[421924796,1778339431000,-1461.42165923,8.436e-05,7]
[421924792,1778339431000,-1645.36692601,8.351e-05,2]
[421924794,1778339431000,-2400.22851435,8.436e-05,7]
[421924798,1778339431000,-386.61801461,8.437e-05,2]
[421924803,1778339431000,-150.308,8.52e-05,2]
[421924807,1778339431000,-12978.46831745,8.592e-05,2]
[421924805,1778339431000,-300.0,8.591e-05,2]
[421924809,1778339431000,-1291.24887607,8.592e-05,2]
[421924812,1778339431000,-698.15084257,8.592e-05,2]
[421924814,1778339431000,-2251.31959154,8.592e-05,2]
[421924802,1778339431000,-938.939,8.52e-05,2]
[421924969,1778339438000,-6889.39697059,8.592e-05,2]
[421924974,1778339438000,-183913.9043165,8.593e-05,2]
[421924975,1778339438000,-1485123.41205261,8.593e-05,2]
[421924971,1778339438000,-24926.95927305,8.593e-05,2]
[421924968,1778339438000,-7955.41516264,8.592e-05,2]
[421924970,1778339438000,-500.0,8.592e-05,2]
[421924972,1778339438000,-952.97724851,8.593e-05,2]
[421924976,1778339438000,-2463.48621564,8.593e-05,2]
[421924973,1778339438000,-2536.51378436,8.593e-05,2]
[421924998,1778339440000,-1258.43671265,8.593e-05,2]
[421924997,1778339440000,-80150.0,8.593e-05,2]
[421924995,1778339440000,-2624.61595885,8.593e-05,2]
[421924996,1778339440000,-500.0,8.593e-05,2]
[421924993,1778339440000,-1019.05201729,8.593e-05,2]
[421924994,1778339440000,-7909.01872154,8.593e-05,2]
[421924991,1778339440000,-523.75236559,8.593e-05,2]
[421925021,1778339443000,-1179.67946753,8.593e-05,2]
[421925023,1778339443000,-3256.23330091,8.593e-05,2]
[421925019,1778339443000,-5808.49999837,8.593e-05,2]
[421925050,1778339443000,-813.5,8.593e-05,2]
[421925057,1778339443000,-468.942,8.593e-05,2]
[421925025,1778339443000,-285.0,8.593e-05,2]
[421925114,1778339446000,-944.0,9.069e-05,2]
[421925115,1778339446000,-944.0,9.069e-05,2]
[421925113,1778339446000,-944.0,9.069e-05,2]
[421925111,1778339446000,-944.0,9.069e-05,2]
[421925109,1778339446000,-944.0,9.069e-05,2]
[421925110,1778339446000,-944.0,9.069e-05,2]
[421925108,1778339446000,-944.0,9.069e-05,2]
[421925107,1778339446000,-944.0,9.069e-05,2]
[421925106,1778339446000,-944.0,9.069e-05,2]
[421925104,1778339446000,-944.0,9.069e-05,2]
[421925105,1778339446000,-944.0,9.069e-05,2]
[421925102,1778339446000,-944.0,9.069e-05,2]
[421925101,1778339446000,-6017.8433993,9.038e-05,2]
[421925100,1778339446000,-731.0138524,9.038e-05,2]
[421925099,1778339446000,-80.03283915,9.038e-05,2]
[421925097,1778339446000,-5390.3799083,9.037e-05,2]
[421925098,1778339446000,-6593.93751635,9.038e-05,2]
[421925096,1778339446000,-500.0,8.866e-05,2]
[421925093,1778339446000,-9515.15640683,8.593e-05,2]
[421925094,1778339446000,-33487.02731449,8.593e-05,2]
[421925095,1778339446000,-233.05787468,8.793e-05,2]
[421925092,1778339446000,-63614.1874677,8.593e-05,2]
[421925112,1778339446000,-944.0,9.069e-05,2]
[421925103,1778339446000,-944.0,9.069e-05,2]
[421925116,1778339446000,-944.0,9.069e-05,2]
[421925122,1778339446000,-944.0,9.069e-05,2]
[421925120,1778339446000,-944.0,9.069e-05,2]
[421925143,1778339446000,-2553.58758692,9.425e-05,2]
[421925140,1778339446000,-621.78829552,9.343e-05,2]
[421925142,1778339446000,-500.0,9.414e-05,2]
[421925117,1778339446000,-944.0,9.069e-05,2]
[421925139,1778339446000,-151.0,9.299e-05,2]
[421925138,1778339446000,-326.9589025,9.299e-05,2]
[421925137,1778339446000,-599.60298507,9.288e-05,2]
[421925136,1778339446000,-578.20924308,9.233e-05,2]
[421925135,1778339446000,-557.5788265,9.178e-05,2]
[421925134,1778339446000,-500.0,9.14e-05,2]
[421925133,1778339446000,-988.97969795,9.123e-05,2]
[421925141,1778339446000,-644.79446246,9.398e-05,2]
[421925132,1778339446000,-276.5150003,9.123e-05,2]
[421925128,1778339446000,-162.380719,9.123e-05,2]
[421925131,1778339446000,-8734.50530175,9.123e-05,2]
[421925125,1778339446000,-964.86344473,9.069e-05,2]
[421925124,1778339446000,-944.0,9.069e-05,2]
[421925127,1778339446000,-445.202766,9.123e-05,2]
[421925126,1778339446000,-537.6845,9.123e-05,2]
[421925123,1778339446000,-944.0,9.069e-05,2]
[421925121,1778339446000,-944.0,9.069e-05,2]
[421925118,1778339446000,-944.0,9.069e-05,2]
[421925119,1778339446000,-944.0,9.069e-05,2]
[421925129,1778339446000,-537.6845,9.123e-05,2]
[421925183,1778340136000,242.04447149,8.142e-05,2]
[421925184,1778340140000,968.17788598,8.142e-05,2]
[421925185,1778340143000,2178.40024345,8.142e-05,2]
[421925186,1778340146000,3872.71154392,8.142e-05,2]
[421925187,1778340149000,6051.11178737,8.142e-05,2]
[421925188,1778340152000,8713.60097381,8.142e-05,2]
[421925210,1778340435000,500.0,0.0001917,120]
[421925288,1778340635000,-300.0,8.27e-05,2]
[421925290,1778340635000,-142.68549599,8.271e-05,2]
[421925289,1778340635000,-276.36,8.271e-05,2]
[421925292,1778340635000,-3767.63805441,8.271e-05,2]
[421925291,1778340635000,-1676.18198395,8.271e-05,2]
[421925302,1778340635000,-500.0,8.862e-05,2]
[421925295,1778340635000,-216.1498956,8.767e-05,2]
[421925301,1778340635000,-1642.3731421,8.767e-05,2]
[421925298,1778340635000,-997.32222237,8.767e-05,2]
[421925299,1778340635000,-2042.36154276,8.767e-05,2]
[421925297,1778340635000,-1078.08916142,8.767e-05,2]
[421925293,1778340635000,-395.33790358,8.42e-05,2]
[421925307,1778340635000,-500.0,8.862e-05,2]
[421925309,1778340635000,-86054.53584827,8.863e-05,2]
[421925304,1778340635000,-500.0,8.862e-05,2]
[421925303,1778340635000,-279.66998128,8.862e-05,2]
[421925305,1778340635000,-500.0,8.862e-05,2]
[421925300,1778340635000,-1821.4414925,8.767e-05,2]